Cogmind - Beta 17.1 @@@ ROGUE MODE // 2026.09.20 @ 04:07:26 Player: Somberlain Result: Destroyed by G-73 Enforcer with Phase Gun Performance ------------- Evolutions (7) 3500 Regions Visited (13) 2600 Robots Destroyed (154) 770 Value Destroyed (8511) 8511 Prototype IDs (58) 1160 Alien Tech Used (0) 0 Bonus (2803) 2803 TOTAL SCORE: 19344 Bonus ------- High Alert Combat Kills 1578 Follower Combat Kills 425 Aligned with FarCom 300 Scanned by Researcher 500 Cogmind --------- Core Integrity 0/1300 Matter 51/300 Energy 15/700 System Corruption 43% Temperature Warning (304) Movement Core (600) Ox11 Location -3/Testing Parts ------- > --- POWER (2) -------- (None) > --- PROPULSION (4) --- (None) > --- UTILITY (13) ----- Large Storage Unit Experimental Energy Well Advanced Signal Interpreter Graphene Brace > --- WEAPON (2) ------- Improved Matter Neutralizer > --- INVENTORY (15) --- Improved Recalibrator Compact HERF Cannon Compact HERF Cannon Latent Energy Streamer Potential Cannon Hammer Peak State ------------ > --- POWER ------------ Antimatter Reactor Particle Reactor > --- PROPULSION ------- Myomer Leg High-density Centrium Wheel High-density Centrium Wheel High-density Centrium Wheel > --- UTILITY ---------- Advanced Heat Sink Advanced Heat Sink Large Storage Unit Experimental Energy Well Advanced Sensor Array Advanced Signal Interpreter Improved Target Analyzer Advanced Transmission Jammer Centrium Heavy Armor Plating Graphene Brace Advanced Force Field Improved Point Defense System > --- WEAPON ----------- Heavy Quantum Rifle Compact HERF Cannon > --- INVENTORY -------- Micro Antimatter Reactor Advanced Force Field Improved Recalibrator Compact HERF Cannon Compact HERF Cannon Compact HERF Cannon Compact HERF Cannon Latent Energy Streamer Potential Cannon Advanced KE Penetrator Advanced KE Penetrator Micro-nuke Launcher Micro-nuke Launcher Hammer [Rating: 163] Favorites ----------- Power Antimatter Reactor Engine Ion Engine Power Core Light Nuclear Core Reactor Antimatter Reactor Propulsion Potential Leg Treads Light Treads Leg Potential Leg Wheel High-density Centrium Wheel Utility Large Storage Unit Device Advanced Heat Sink Storage Large Storage Unit Processor Advanced Signal Interpreter Protection Centrium Heavy Armor Plating Weapon Advanced Beam Cannon Energy Gun EM Shotgun Energy Cannon Advanced Beam Cannon Ballistic Gun Advanced KE Penetrator Ballistic Cannon Antimatter Cannon Launcher Micro-nuke Launcher Special Weapon Advanced Remote Datajack Impact Weapon Hammer Slashing Weapon Greatsword Build | -11 -10 -9 -9 -9 -8 -8 -7 -6 -5 -4 -4 -3 -3 ------- Run | Yrd Mat Mat Min Exi Min Mat Fac Fac Fac Fac Arm Res Tes Slots Evolved 14 | . . 2 . . . 2 2 2 2 2 . 2 . Power 1 | . . . . . . . 1 . . . . . . Propulsion 2 | . . . . . . . . 1 . 1 . . . Utility 11 | . . 2 . . . 2 1 1 2 1 . 2 . Weapon . | . . . . . . . . . . . . . . Parts Attached 131 | 6 6 7 1 2 2 4 9 9 2 13 22 20 28 Power 20 | 1 1 1 . . . . 3 1 . 1 4 1 7 Engine 3 | 1 1 . . . . . 1 . . . . . . Core 4 | . . 1 . . . . 2 1 . . . . . Reactor 13 | . . . . . . . . . . 1 4 1 7 Propulsion 17 | 2 . 3 . 2 . . . 1 1 . 3 5 . Treads 3 | 2 . 1 . . . . . . . . . . . Leg 11 | . . 2 . 2 . . . 1 1 . 3 2 . Wheel 3 | . . . . . . . . . . . . 3 . Hover . | . . . . . . . . . . . . . . Flight . | . . . . . . . . . . . . . . Utility 57 | 1 3 1 1 . 1 3 5 7 1 8 4 11 11 Device 36 | . 1 1 1 . 1 1 3 6 . 4 3 8 7 Storage 6 | 1 2 . . . . . . . . 1 . . 2 Processor 12 | . . . . . . 2 2 1 1 3 1 1 1 Hackware . | . . . . . . . . . . . . . . Protection 3 | . . . . . . . . . . . . 2 1 Artifact . | . . . . . . . . . . . . . . Weapon 37 | 2 2 2 . . 1 1 1 . . 4 11 3 10 Energy Gun 6 | . 2 . . . . . . . . 1 . . 3 Energy Cannon 20 | . . 2 . . 1 . . . . 2 6 3 6 Ballistic Gun 4 | 2 . . . . . . . . . . 2 . . Ballistic Cannon 1 | . . . . . . . . . . . 1 . . Launcher 2 | . . . . . . . . . . . 2 . . Special Weapon 1 | . . . . . . . . . . . . . 1 Impact Weapon 1 | . . . . . . . . . . 1 . . . Slashing Weapon 2 | . . . . . . 1 1 . . . . . . Piercing Weapon . | . . . . . . . . . . . . . . Special Melee Weapon . | . . . . . . . . . . . . . . Unidentified Prototypes 16 | . . . . . . . . . . 1 2 2 11 Corrupted Parts 6 | . . . . . . . . . . . 5 1 . System Corruption 44 | . . . . . . . . . . . 36 8 . Parts Lost 54 | . . 3 . . . 1 . . . 4 13 7 26 Power 9 | . . . . . . . . . . . 3 1 5 Propulsion 12 | . . 2 . . . . . . . . 4 2 4 Utility 24 | . . . . . . 1 . . . 4 6 3 10 Weapon 9 | . . 1 . . . . . . . . . 1 7 Highest Loss Streak 16 | . . 2 . . . 1 . . . 2 5 4 16 To Critical Strikes . | . . . . . . . . . . . . . . Average Backups 11 | 1 5 7 6 6 8 12 14 14 13 13 13 13 12 Power . | . 1 . . . . . . . . . . . . Propulsion . | 1 2 1 1 . . . 1 . . . . . . Utility 2 | . . . . . 1 4 5 7 7 6 1 1 1 Weapon 7 | . 2 5 5 5 6 7 7 6 4 5 9 10 10 Tool/Special . | . . . . . . . . . . . . . . Unused Backups 15 | . . 2 . . . . 2 3 1 . 2 4 1 Power 1 | . . . . . . . . . . . . 1 . Propulsion . | . . . . . . . . . . . . . . Utility 2 | . . . . . . . . 1 . . 1 . . Weapon 11 | . . 2 . . . . 2 2 1 . 1 2 1 Tool/Special 1 | . . . . . . . . . . . . 1 . Average Slot Usage (%) 86 | . 90 76 93 100 88 87 92 91 90 95 89 71 85 Engine 2 | . 14 9 . . . . 6 . . . . . . Core 3 | . . 1 11 11 11 9 7 13 11 8 . . . Reactor 3 | . . . . . . . . . . 1 8 8 8 Treads 3 | . 28 9 . . . . . . . . . . . Leg 12 | . . 8 22 22 22 18 15 20 17 20 18 11 1 Wheel 2 | . . . . . . . . . . . . 2 13 Device 25 | . 4 14 26 33 22 21 28 31 33 33 34 23 28 Storage 7 | . 14 11 11 11 11 9 7 6 5 5 5 4 8 Processor 8 | . . . . . . 11 14 13 15 16 10 9 9 Energy Gun 2 | . 10 12 . . . . . . . 2 . . . Energy Cannon 6 | . . 9 22 22 22 17 6 . . 2 2 6 5 Ballistic Gun 2 | . 17 . . . . . . . . . 2 2 . Slashing Weapon 1 | . . . . . . . 3 6 5 1 . . . Peak Build Rating 163 | 6 12 17 20 39 46 56 66 83 95 121 123 133 163 Average Rating 80 | 4 8 13 18 27 40 47 61 77 90 104 110 105 148 On Entrance 52 | . 6 12 17 20 39 39 47 66 83 87 100 86 133 Avg Prop Armor Cover (%) 4 | . . . . . . . . 2 . . 5 5 3 Naked Turns . | . . . . . . . . . . . . . . Heaviest Build 124 | 13 32 35 36 36 41 42 57 53 56 101 100 96 124 Greatest Support 97 | 40 40 40 20 60 60 60 60 72 83 95 97 63 60 Greatest Overweight (x) 4 | . . 1 1 1 . . . . . 1 1 4 2 Average Overweight (x) . | . . . 1 . . . . . . . . 1 1 Largest Inventory Capacity 20 | 8 15 15 15 15 15 15 15 15 15 20 20 15 15 Average Capacity 15 | 7 12 15 15 15 15 15 15 15 15 19 15 15 15 Most Carried 20 | 3 9 11 6 8 9 14 15 15 15 19 20 15 15 Average Carried 12 | 1 5 7 6 6 8 12 14 14 13 15 14 14 13 Final Capacity 20 | 8 15 15 15 15 15 15 15 15 15 20 15 15 15 Final Carried 19 | 3 7 6 6 7 9 14 15 15 14 19 15 14 7 Class Distribution -------------------- 60% | Mutant 21% | Scavenger-Mutant 10% | Skirmisher 4% | Gladiator Dominant Class ---------------- Mutant | -10/Materials Mutant | -9/Materials Mutant | -9/Mines Scavenger-Mutant | -9/Exiles Skirmisher | -8/Mines Skirmisher | -8/Materials Mutant | -7/Factory Mutant | -6/Factory Gladiator | -5/Factory Skirmisher | -4/Factory Mutant | -4/Armory Scavenger-Mutant | -3/Research Mutant | -3/Testing Resources | -11 -10 -9 -9 -9 -8 -8 -7 -6 -5 -4 -4 -3 -3 ----------- Run | Yrd Mat Mat Min Exi Min Mat Fac Fac Fac Fac Arm Res Tes Matter Collected 3818 | 235 233 75 20 . 40 81 132 85 75 85 1332 580 845 Remotely . | . . . . . . . . . . . . . . Salvage Created 7357 | . 471 359 65 . . 315 289 85 72 514 1897 1315 1975 Parts 335 | . 27 17 7 . . 27 13 8 6 18 68 66 78 Haulers Intercepted 3 | . 1 2 . . . . . . . . . . . Recyclers Shooed 2 | . . 1 . . . . . . . . . 1 . Parts Field Recycled . | . . . . . . . . . . . . . . Retrieved Matter . | . . . . . . . . . . . . . . Parts Self-Destructed . | . . . . . . . . . . . . . . Prevented . | . . . . . . . . . . . . . . Parts Restored 1 | . . . . . . . . . . . . . 1 Broken 1 | . . . . . . . . . . . . . 1 Kills | -11 -10 -9 -9 -9 -8 -8 -7 -6 -5 -4 -4 -3 -3 ------- Run | Yrd Mat Mat Min Exi Min Mat Fac Fac Fac Fac Arm Res Tes Combat Hostiles Destroyed 119 | . 8 4 4 . . 7 5 1 . 7 37 13 33 Melee 1 | . . . . . . . . 1 . . . . . Guns 35 | . 5 4 . . . . . . . 3 9 7 7 Cannons 21 | . . . 4 . . 3 1 . . 1 2 1 9 AOE 39 | . 3 . . . . 4 4 . . 1 16 1 10 Classes Destroyed 19 | . 5 1 1 . . 2 1 . . . 3 1 5 Worker 5 | . 2 . . . . . . . 2 . . . 1 Builder 9 | . . . . . . 1 1 . 2 . . 2 3 Hauler 3 | . 1 2 . . . . . . . . . . . Recycler 2 | . . . . . . . . . . . . 1 1 Mechanic 2 | . . . . . . . . . . . 1 . 1 Operator 3 | . 1 . . . . . 1 1 . . . . . Watcher 10 | . 2 1 . . . 1 . . . 1 1 3 1 Swarmer 8 | . . . 4 . . 3 . . . . . . 1 Grunt 38 | . 8 . . . . . 3 . . . 7 6 14 Brawler 1 | . . . . . . . . . . . . . 1 Duelist 13 | . . . . . . . . . . . 9 . 4 Protector 2 | . . . . . . . . . . . 1 . 1 Sentry 14 | . . 4 . . . 3 . . . 1 4 2 . Hunter 12 | . . . . . . 1 1 1 . 2 6 . 1 Programmer 27 | . . . . . . . 1 . . 4 10 5 7 Q-Series 1 | . . . . . . . . . . . . . 1 Striker 2 | . . . . . . . . . . . . . 2 Alpha 7 1 | . . . . . . . . . . . . . 1 Protovariant X 1 | . . . . . . . . . . . . . 1 Best Kill Streak 7 | . 3 2 4 . . 5 4 1 4 4 7 3 7 Combat Bots Only 7 | . 2 2 4 . . 4 3 1 . 4 7 3 5 Max Kills in Single Turn 4 | . 2 1 1 . . 3 4 1 1 2 3 1 3 Gunslinging . | . . . . . . . . . . . . . . Exploded 3 | . 2 . . . . 3 3 . . 1 3 1 3 Melee 1 | . . . . . . . . 1 . . . . . Uniques/NPCs Destroyed . | . . . . . . . . . . . . . . Combat | -11 -10 -9 -9 -9 -8 -8 -7 -6 -5 -4 -4 -3 -3 -------- Run | Yrd Mat Mat Min Exi Min Mat Fac Fac Fac Fac Arm Res Tes Hostile Shots Fired 997 | . 61 20 24 . 3 21 14 15 2 80 233 78 446 Missed 322 | . 18 10 7 . 1 10 7 5 . 38 93 18 115 Hits 675 | . 43 10 17 . 2 11 7 10 2 42 140 60 331 Melee 20 | . . . . . . . . . 2 . 1 . 17 Projectile 655 | . 43 10 17 . 2 11 7 10 . 42 139 60 314 AOE 1 | . . . . . . . . . . . 1 . . Critical Strikes 31 | . 1 1 . . . . . . 1 1 6 4 17 Actively Blocked 21 | . . . . . . . . . . . . 4 17 Part Disruptions 4 | . . . . . . . . . . 1 2 . 1 Damage Taken 12773 | . 532 148 130 . 33 147 99 134 54 735 2139 1475 7147 Core 1802 | . 24 29 14 . . . . . . 96 323 216 1100 Absorbed by Shields 1501 | . . . . . . . . 49 19 183 361 86 803 Ignored by Resistances 432 | . . . . . . . . . . 62 370 . . Regen/Repaired (Parts) 68 | . . 25 . . . . 43 . . . . . . Core Remaining (%) 92 | 100 90 . . . 89 100 100 100 100 . 63 . . Volleys Fired 369 | . 45 20 6 . 7 19 5 . . 27 81 40 119 Largest 2 | . 2 2 2 . 2 2 2 . . 2 2 2 2 Hottest 200 | . 90 90 136 . 136 136 136 . . 173 162 194 200 Shots Fired 585 | . 90 38 12 . 14 31 8 . . 44 134 75 139 Gun 279 | . 90 38 . . . . . . . 17 53 40 41 Cannon 266 | . . . 12 . 14 31 8 . . 27 47 35 92 Launcher 37 | . . . . . . . . . . . 34 . 3 Special 3 | . . . . . . . . . . . . . 3 Kinetic 208 | . 74 . . . . . . . . . 53 40 41 Thermal 125 | . . . 12 . 14 29 6 . . 34 . . 30 Explosive 37 | . . . . . . . . . . . 34 . 3 Electromagnetic 212 | . 16 38 . . . 2 2 . . 10 47 35 62 Robot Hit Streak 17 | . 8 17 2 . . 7 5 . . 14 8 8 7 Robot Miss Streak 7 | . 3 2 2 . . 1 2 . . 5 7 6 5 Penetration Max 1 | . . . . . . . . . . . 1 . 1 Secondary Targets 5 | . 2 . . . . . . . . . 2 1 . Max Gunslinging Chain 1 | . 1 . . . . . . . . . 1 1 . Shots Hit Robots 340 | . 56 33 5 . . 23 7 4 4 29 67 47 65 Core Hits 303 | . 27 18 4 . . 13 10 1 2 15 100 31 82 Critical Kills 14 | . . . . . . . . . . . 5 2 7 Critical Parts Destroyed 15 | . 1 . . . . . . . . . 7 3 4 Critical Strikes 37 | . 1 . . . . . . . . . 15 7 14 Meltdown 3 | . . . . . . . . . . . . . 3 Destroy 26 | . 1 . . . . . . . . . 12 5 8 Corrupt 8 | . . . . . . . . . . . 3 2 3 Melee Attacks 69 | . . . . . . 3 21 12 6 17 5 . 5 Impact 20 | . . . . . . . . . . 13 2 . 5 Slashing 49 | . . . . . . 3 21 12 6 4 3 . . Piercing . | . . . . . . . . . . . . . . Sneak Attacks 4 | . . . . . . . . . 4 . . . . Combat Hostiles . | . . . . . . . . . . . . . . Follow-up Attacks . | . . . . . . . . . . . . . . Damage Inflicted 24406 | . 827 473 111 . . 746 816 232 435 1411 7477 2283 9595 Guns 3888 | . 715 473 . . . . . . . 318 793 860 729 Cannons 5844 | . . . 111 . . 444 132 . . 644 487 945 3081 Explosions 13879 | . 112 . . . . 295 626 . . 449 6197 478 5722 Melee 725 | . . . . . . . 58 232 435 . . . . Ramming 70 | . . . . . . 7 . . . . . . 63 Kinetic 2905 | . 523 . . . . . . . . . 793 860 729 Thermal 7287 | . 112 . 111 . . 433 116 . . 752 . 140 5623 Explosive 5913 | . . . . . . . . . . . 4752 . 1161 Electromagnetic 7506 | . 192 473 . . . 306 642 . . 659 1932 1283 2019 Impact . | . . . . . . . . . . . . . . Slashing 725 | . . . . . . . 58 232 435 . . . . Piercing . | . . . . . . . . . . . . . . Highest Corruption 59 | . . . . . . . . . . . 59 17 43 Average Corruption 20 | . . . . . . . . . . . 11 12 29 Corruption Purged . | . . . . . . . . . . . . . . Corruption Blocked 36 | . . . . . . 5 9 1 . 13 8 . . Effects 166 | . . . . . . . . . . . 38 27 101 Message Errors 33 | . . . . . . . . . . . 12 2 19 Matter Fused 39 | . . . . . . . . . . . 7 10 22 Heat Flow Errors 26 | . . . . . . . . . . . 6 6 14 Energy Discharges 17 | . . . . . . . . . . . 4 4 9 Parts Rejected 2 | . . . . . . . . . . . 1 . 1 Data Loss (minor) 10 | . . . . . . . . . . . 2 2 6 Data Loss (major) 9 | . . . . . . . . . . . 1 . 8 Misfires 6 | . . . . . . . . . . . 1 2 3 Alerts 5 | . . . . . . . . . . . 1 . 4 Misdirections 6 | . . . . . . . . . . . 1 . 5 Weapon Failures 13 | . . . . . . . . . . . 2 1 10 Overload Shots . | . . . . . . . . . . . . . . Overflow Damage 1043 | . . . . . . . 13 57 165 96 118 59 535 Projectiles 345 | . . . . . . . 5 . . 49 . 59 232 Explosions 476 | . . . . . . . 8 . . 47 118 . 303 Melee 222 | . . . . . . . . 57 165 . . . . Knockbacks . | . . . . . . . . . . . . . . Impact . | . . . . . . . . . . . . . . Kinetic . | . . . . . . . . . . . . . . Secondary . | . . . . . . . . . . . . . . Self-Inflicted Damage 1212 | . . . . . . . . . . 44 116 87 965 Shots 15 | . . . . . . . . . . 1 2 1 11 Rammed 1 | . . . . . . . . . . . . . 1 Targets Rammed 2 | . . . . . . 1 . . . . . . 1 Kicked 1 | . . . . . . 1 . . . . . . . Crushed . | . . . . . . . . . . . . . . Highest Temperature 516 | . 84 2 . . 212 102 102 . . 240 516 220 472 Average Temperature 123 | . 16 2 . . 108 51 46 . . 79 128 79 171 Received Heat Transfer 1336 | . 321 63 . . 18 45 18 12 . 42 80 141 596 Effects 25 | . . . . . . . . . . . 5 . 20 Shutdowns 10 | . . . . . . . . . . . 2 . 8 Energy Bleed 2 | . . . . . . . . . . . . . 2 Interference 9 | . . . . . . . . . . . 2 . 7 Matter Decay 2 | . . . . . . . . . . . . . 2 Short Circuit 1 | . . . . . . . . . . . 1 . . Damage (minor) 1 | . . . . . . . . . . . . . 1 Siege Activations . | . . . . . . . . . . . . . . Martial Activations . | . . . . . . . . . . . . . . Shielding Activations . | . . . . . . . . . . . . . . Robots Disrupted 2 | . . . . . . . . . . . 2 . . Combat Hostiles 2 | . . . . . . . . . . . 2 . . Robots Corrupted 22 | . . . . . . . . . . 2 10 5 5 Combat Hostiles 20 | . . . . . . . . . . 2 10 4 4 Parts Fried 49 | . 1 3 . . . . 2 . . 7 23 4 9 Impact Corruptions . | . . . . . . . . . . . . . . Robots Melted 3 | . . . . . . . . . . . . . 3 Combat Hostiles 3 | . . . . . . . . . . . . . 3 Parts Melted 15 | . . . . . . 1 2 . . 8 . 1 3 Heat Transferred 6329 | . 200 . 185 . . 777 148 . . 994 . 100 3925 Parts Sabotaged . | . . . . . . . . . . . . . . Parts Stolen . | . . . . . . . . . . . . . . Parts Stripped . | . . . . . . . . . . . . . . Power Chain Reactions 7 | . 2 . . . . . . . . . 1 1 3 Latent Energy Used 2955 | . . . . . . 328 400 . . 336 1078 185 628 LE Corruption 51 | . . . . . . 5 6 . . 6 19 3 12 Alert | -11 -10 -9 -9 -9 -8 -8 -7 -6 -5 -4 -4 -3 -3 ------- Run | Yrd Mat Mat Min Exi Min Mat Fac Fac Fac Fac Arm Res Tes Maximum Alert Level 4 | . . . . . . . 1 . . . 3 2 4 Low Security (%) 65 | 100 100 100 100 . 100 100 97 100 100 100 26 . 38 Level 1 13 | . . . . . . . 2 . . . 27 58 12 Level 2 12 | . . . . . . . . . . . 41 41 7 Level 3 6 | . . . . . . . . . . . 4 . 33 Level 4 1 | . . . . . . . . . . . . . 8 Level 5 . | . . . . . . . . . . . . . . High Security . | . . . . . . . . . . . . . . Max Security . | . . . . . . . . . . . . . . Peak Influence 1288 | . 123 60 80 . . 174 210 30 15 115 904 472 1288 Initial 472 | . . 21 . . . . 70 14 . 2 34 472 243 Average 222 | . 34 12 26 . . 84 91 5 . 34 379 391 541 Influence Increases 5304 | . 281 144 90 . . 261 407 56 29 311 1452 509 1764 Destroy 0b10 Robot/C 2560 | . 160 80 80 . . 140 100 20 . 140 720 260 860 Destroy 0b10 Robot/NC 190 | . 30 15 . . . 10 10 5 25 5 15 30 45 Destroy Leader 568 | . 46 46 10 . . 52 30 10 . 32 154 76 112 Allied During Kill 109 | . . . . . . . . . . . . . 109 Successful Hack 86 | . 18 3 . . . . 15 . . 16 . 18 16 Disable Machine 345 | . 15 . . . . 15 30 15 . . 105 30 135 Anti-Garrison Action 150 | . . . . . . . 150 . . . . . . Destroy Structure 981 | . 12 . . . . 29 42 6 4 58 368 50 412 Partial Spotted 15 | . . . . . . . . . . . . 15 . Lose Combat Pursuer 300 | . . . . . . 15 30 . . 60 90 30 75 Influence Decreases 4138 | . 230 195 60 30 . 107 532 85 24 245 623 976 1031 Entered New Map 817 | . . 30 . 30 . . 84 15 . 3 37 428 190 Time Decay 2781 | . 230 155 60 . . 97 448 70 14 202 456 478 571 Lost Part 520 | . . 10 . . . 10 . . . 40 130 70 260 Lost Ally 20 | . . . . . . . . . 10 . . . 10 Squads Dispatched 38 | . 3 . . . . 1 8 2 . 3 8 1 12 Investigation 6 | . 1 . . . . 1 2 2 . . . . . Extermination 12 | . . . . . . . 3 . . 2 3 1 3 Reinforcement 9 | . 2 . . . . . 1 . . . 2 . 4 Assault 10 | . . . . . . . 2 . . . 3 . 5 Garrison 1 | . . . . . . . . . . 1 . . . Intercept . | . . . . . . . . . . . . . . Searches Triggered . | . . . . . . . . . . . . . . Construction Impeded . | . . . . . . . . . . . . . . Haulers Reinforced . | . . . . . . . . . . . . . . Active Scanning Responses . | . . . . . . . . . . . . . . Cargo Convoy Interrupts . | . . . . . . . . . . . . . . Stealth | -11 -10 -9 -9 -9 -8 -8 -7 -6 -5 -4 -4 -3 -3 --------- Run | Yrd Mat Mat Min Exi Min Mat Fac Fac Fac Fac Arm Res Tes Distress Signals 12 | . . . . . . 2 . . . 3 4 1 2 Communications Jammed 60 | . . . . . . . . . . . . 23 37 Distress Signals 57 | . . . . . . . . . . . . 20 37 Times Spotted 225 | . 12 5 4 . 6 16 8 5 4 23 54 23 65 Peak Tracking Total 8 | . 2 2 4 . 6 8 5 3 4 8 8 4 7 Tactical Retreats 13 | . . . . . . 1 1 . . 1 3 2 5 Traps | -11 -10 -9 -9 -9 -8 -8 -7 -6 -5 -4 -4 -3 -3 ------- Run | Yrd Mat Mat Min Exi Min Mat Fac Fac Fac Fac Arm Res Tes Traps Triggered 15 | . 2 . . . . . 4 . . 1 . 3 5 Indirectly 2 | . . . . . . . 1 . . 1 . . . Trap Hack Attempts . | . . . . . . . . . . . . . . Triggered . | . . . . . . . . . . . . . . Disarmed . | . . . . . . . . . . . . . . Reprogrammed . | . . . . . . . . . . . . . . Reused . | . . . . . . . . . . . . . . Traps Extracted . | . . . . . . . . . . . . . . Installed . | . . . . . . . . . . . . . . Triggered . | . . . . . . . . . . . . . . Machines | -11 -10 -9 -9 -9 -8 -8 -7 -6 -5 -4 -4 -3 -3 ---------- Run | Yrd Mat Mat Min Exi Min Mat Fac Fac Fac Fac Arm Res Tes Machines Disabled 25 | . 1 . . . . 1 3 1 . . 7 2 10 Max in Single Turn 2 | . 1 . . . . 1 2 1 . . 2 1 2 Garrison Access 2 | . . . . . . . 1 . . . . . 1 Machines Repaired . | . . . . . . . . . . . . . . Machines Dismantled . | . . . . . . . . . . . . . . Machines Sabotaged . | . . . . . . . . . . . . . . Overloaded Fab Kills . | . . . . . . . . . . . . . . Hacking | -11 -10 -9 -9 -9 -8 -8 -7 -6 -5 -4 -4 -3 -3 --------- Run | Yrd Mat Mat Min Exi Min Mat Fac Fac Fac Fac Arm Res Tes Machines Accessed 40 | . 3 4 . 4 . 3 8 6 1 1 3 4 3 Terminals 19 | . 3 1 . . . 2 4 3 . 1 2 2 1 Fabricators 7 | . . . . . . . 1 2 1 . 1 1 1 Repair Stations 4 | . . 1 . . . . 1 . . . . 1 1 Recycling Units 2 | . . 1 . . . . 1 . . . . . . Scanalyzers 3 | . . 1 . . . 1 1 . . . . . . Garrison Access 1 | . . . . . . . . 1 . . . . . Total Hacks 82 | . 11 10 . 4 . 6 16 12 2 2 4 9 6 Successful 29 | . 5 3 . 4 . 2 7 2 . 1 . 3 2 Failed 51 | . 5 6 . . . 4 9 10 2 1 4 6 4 Catastrophic 11 | . 1 . . . . . 2 1 2 . 1 3 1 Database Lockouts 2 | . 1 1 . . . . . . . . . . . Manual 23 | . 11 2 . 1 . 2 1 1 . . 1 4 . Terminals 39 | . 11 2 . . . 2 6 5 . 2 3 7 1 Fabricators 13 | . . . . . . . 1 6 2 . 1 1 2 Repair Stations 10 | . . 3 . . . . 3 . . . . 1 3 Recycling Units 4 | . . 2 . . . . 2 . . . . . . Scanalyzers 11 | . . 3 . . . 4 4 . . . . . . Garrison Access 1 | . . . . . . . . 1 . . . . . Terminal Hacks 13 | . 5 . . 4 . . . 1 . 1 . 2 . Record 4 | . . . . 3 . . . . . . . 1 . Part Schematic 1 | . . . . . . . . 1 . . . . . Robot Analysis 2 | . 2 . . . . . . . . . . . . Prototype ID Bank 3 | . 3 . . . . . . . . . . . . Registered Components 2 | . . . . . . . . . . 1 . 1 . Proto ID Catalog 1 | . . . . 1 . . . . . . . . . Fabricator Hacks 4 | . . . . . . . 1 1 . . . 1 1 Network Status 2 | . . . . . . . 1 . . . . 1 . Load Schematic 1 | . . . . . . . . 1 . . . . . Build 1 | . . . . . . . . . . . . . 1 Repair Station Hacks 5 | . . 2 . . . . 2 . . . . . 1 Scan Component 3 | . . 1 . . . . 1 . . . . . 1 Repair 2 | . . 1 . . . . 1 . . . . . . Recycling Unit Hacks 2 | . . . . . . . 2 . . . . . . Retrieve Components 2 | . . . . . . . 2 . . . . . . Scanalyzer 5 | . . 1 . . . 2 2 . . . . . . Insert Component 2 | . . . . . . 1 1 . . . . . . Retrieve Study 3 | . . 1 . . . 1 1 . . . . . . Garrison Access Hacks . | . . . . . . . . . . . . . . Unauthorized Hacks . | . . . . . . . . . . . . . . Terminals . | . . . . . . . . . . . . . . Fabricators . | . . . . . . . . . . . . . . Repair Stations . | . . . . . . . . . . . . . . Recycling Units . | . . . . . . . . . . . . . . Scanalyzers . | . . . . . . . . . . . . . . Garrison Access . | . . . . . . . . . . . . . . Data Cores Recovered 1 | . . . . . . . . 1 . . . . . Used 1 | . . . . . . . . 1 . . . . . Hacking Detections 31 | . 3 3 . . . 3 5 6 1 1 3 3 3 Full Trace Events 4 | . . . . . . 1 1 2 . . . . . Feedback Events 1 | . . . . . . . . 1 . . . . . Corruption 1 | . . . . . . . . 1 . . . . . Feedback Blocked . | . . . . . . . . . . . . . . Robot Schematics Acquired 1 | . . . . . . . . . . . . . 1 Robots Built . | . . . . . . . . . . . . . . Authchips . | . . . . . . . . . . . . . . Time . | . . . . . . . . . . . . . . Total Robot Build Rating . | . . . . . . . . . . . . . . Part Schematics Acquired 7 | . . . . . . . . 1 . . . . 6 Parts Built 2 | . . . . . . . . . . . . . 2 Authchips . | . . . . . . . . . . . . . . Time 64 | . . . . . . . . . . . . . 64 Total Part Build Rating 16 | . . . . . . . . . . . . . 16 Part Studies Acquired 3 | . . 1 . . . 1 1 . . . . . . Parts Repaired 2 | . . 1 . . . . 1 . . . . . . Time 76 | . . 38 . . . . 38 . . . . . . Parts Recycled . | . . . . . . . . . . . . . . Recycled Matter . | . . . . . . . . . . . . . . Retrieved Matter . | . . . . . . . . . . . . . . Retrieved Components . | . . . . . . . . . . . . . . Parts Scanalyzed 1 | . . . . . . . 1 . . . . . . Part Schematics Acquired . | . . . . . . . . . . . . . . Parts Damaged . | . . . . . . . . . . . . . . Bothacking | -11 -10 -9 -9 -9 -8 -8 -7 -6 -5 -4 -4 -3 -3 ------------ Run | Yrd Mat Mat Min Exi Min Mat Fac Fac Fac Fac Arm Res Tes Used RIF Installer . | . . . . . . . . . . . . . . Robots Hacked 2 | . . . . . . . . . . . . . 2 Non-combat 1 | . . . . . . . . . . . . . 1 Combat 1 | . . . . . . . . . . . . . 1 Robot Hacks Applied 2 | . . . . . . . . . . . . . 2 parse_system 2 | . . . . . . . . . . . . . 2 Relay Couplers Released 4 | . . . . . . . 2 . . . . . 2 Machine Destruction 4 | . . . . . . . 2 . . . . . 2 Fabnet Peak Effective % . | . . . . . . . . . . . . . . Robots Rewired 2 | . . . . . . . . . 1 . . . 1 Allies Hacked . | . . . . . . . . . . . . . . Hacks Repelled . | . . . . . . . . . . . . . . Allies | -11 -10 -9 -9 -9 -8 -8 -7 -6 -5 -4 -4 -3 -3 -------- Run | Yrd Mat Mat Min Exi Min Mat Fac Fac Fac Fac Arm Res Tes Total Allies 2 | . . . . . . . . . 1 . . . 1 Largest Group 1 | . . . . . . . . . 1 . . . 1 Highest-Rated Group 164 | . . . . . . . . . 41 . . . 164 Highest-Rated Ally 164 | . . . . . . . . . 41 . . . 164 Total Orders 3 | . . . . . . . . . . . . . 3 EXPLORE 2 | . . . . . . . . . . . . . 2 RETURN 1 | . . . . . . . . . . . . . 1 Ally Attacks 23 | . . . . . . . . . 1 . . . 22 Total Damage 1881 | . . . . . . . . . 50 . . . 1831 Kills 13 | . . . . . . . . . 1 . . . 12 Allies Corrupted 1 | . . . . . . . . . . . . . 1 Allies Melted . | . . . . . . . . . . . . . . Intel | -11 -10 -9 -9 -9 -8 -8 -7 -6 -5 -4 -4 -3 -3 ------- Run | Yrd Mat Mat Min Exi Min Mat Fac Fac Fac Fac Arm Res Tes Active Infowar (turns) 6802 | . . . 96 323 531 240 1126 340 242 584 954 815 1551 Sensors 3796 | . . . . . . 115 1125 319 242 584 . 6 1405 Terrain 1202 | . . . 96 323 531 238 14 . . . . . . Traps 1794 | . . . . . . . . 65 204 584 941 . . Cloaking 2259 | . . . . . 1 . 1125 340 230 336 227 . . Jamming 2366 | . . . . . . . . . . . . 815 1551 Robot Analysis Total 2 | . 2 . . . . . . . . . . . . Derelict Logs Recovered . | . . . . . . . . . . . . . . Drone Launches 3 | . . . . . . . . . . . . . 3 Drone Recoveries 2 | . . . . . . . . . . . . . 2 Exploration | -11 -10 -9 -9 -9 -8 -8 -7 -6 -5 -4 -4 -3 -3 ------------- Run | Yrd Mat Mat Min Exi Min Mat Fac Fac Fac Fac Arm Res Tes Turns Passed 9793 | 73 1062 635 230 323 531 240 1149 340 242 721 1278 1235 1734 Spaces Moved 5996 | 41 556 234 121 243 442 145 911 329 189 493 789 578 925 Core 4 | 4 . . . . . . . . . . . . . Treads 727 | 37 556 134 . . . . . . . . . . . Legs 4203 | . . 100 121 243 442 145 911 329 189 493 789 441 . Wheels 1062 | . . . . . . . . . . . . 137 925 Hover . | . . . . . . . . . . . . . . Flight . | . . . . . . . . . . . . . . Fastest Speed 45 | 50 160 160 175 90 45 90 45 45 85 62 62 110 110 Average Speed 117 | 149 160 195 175 130 88 90 88 82 91 94 115 164 110 Slowest Speed 450 | 160 160 240 175 175 90 90 90 85 100 168 175 450 130 Overloaded Moves 448 | . . . . . 11 . 27 25 . 55 330 . . Propulsion Burnouts . | . . . . . . . . . . . . . . Robots Hopped . | . . . . . . . . . . . . . . Potential Cave-ins . | . . . . . . . . . . . . . . Cave-ins Triggered . | . . . . . . . . . . . . . . Exploration Rate (%) 33 | 3 76 21 29 62 88 16 34 10 5 11 28 23 57 Regions Visited 13 Branch Regions 5 Pre-discovered Areas . | . . . . . . . . . . . . . . Known Exits Taken 7 | . . . . . . 1 1 1 1 1 1 1 . Unknown Exits Taken 6 | 1 1 1 1 1 1 . . . . . . . . Scrap Searched 2 | . . . . . 2 . . . . . . . . Spaces Dug 44 | . . . . . . 1 18 6 2 11 3 . 3 Terrain Destroyed 748 | . 12 . . . . 36 40 6 2 28 302 28 294 Melee 43 | . . . . . . 1 18 6 2 11 3 . 2 Projectile 29 | . . . . . . . . . . 4 11 . 14 AOE 676 | . 12 . . . . 35 22 . . 13 288 28 278 Terrain Rammed . | . . . . . . . . . . . . . . Walls Destroyed . | . . . . . . . . . . . . . . Machines Disabled . | . . . . . . . . . . . . . . Actions | -11 -10 -9 -9 -9 -8 -8 -7 -6 -5 -4 -4 -3 -3 --------- Run | Yrd Mat Mat Min Exi Min Mat Fac Fac Fac Fac Arm Res Tes Total 8005 | 50 645 374 127 249 564 213 1204 376 247 668 1042 790 1456 Wait 1088 | 1 26 103 . . 111 31 228 15 39 104 56 112 262 Move 5984 | 40 555 233 120 242 441 145 910 328 188 492 788 577 925 Hop . | . . . . . . . . . . . . . . Pick Up 81 | 3 5 5 . 2 1 6 11 3 3 7 21 8 6 Fast Attach 83 | 6 6 3 1 . . 2 6 6 2 4 8 18 21 Attach 69 | . . 4 . . . 1 7 1 1 7 19 4 25 Detach 39 | . . 1 . . 1 . 1 2 . 3 7 4 20 Swap 88 | . 2 1 . 2 3 6 3 2 . 4 28 9 28 Drop 96 | . 6 4 . 3 . . 12 7 4 3 21 13 23 Fire 369 | . 45 20 6 . 7 19 5 . . 27 81 40 119 Melee 69 | . . . . . . 3 21 12 6 17 5 . 5 Ram 1 | . . . . . . . . . . . . . 1 Kick . | . . . . . . . . . . . . . . Crush . | . . . . . . . . . . . . . . Escape Stasis 25 | . . . . . . . . . . . . 5 20 Rewire 13 | . . . . . . . . . 4 . 8 . 1 Trap . | . . . . . . . . . . . . . . Miscellaneous . | . . . . . . . . . . . . . . Route ------- -11/Scrapyard -10/Materials (discovered 4 exits: *Mat x3 / [*Sub]) -9/Materials -9/Mines -9/Exiles -8/Mines (discovered 2 exits: *Mat x2) -8/Materials -7/Factory (discovered 2 exits: *Fac / *Low) -6/Factory -5/Factory -4/Factory -4/Armory -3/Research -3/Testing History --------- Turn | Location | Event 25 | -11/Scrapyard | Discovered new exit (range 16) 74 | -11/Scrapyard | Entered Materials 198 | -10/Materials | Discovered new exit (range 14) 303 | -10/Materials | Build established: Mutant 492 | -10/Materials | Discovered new exit (range 10) 809 | -10/Materials | Discovered new exit (range 9) 981 | -10/Materials | Central database locked down 1088 | -10/Materials | Discovered new exit (range 7) 1136 | -10/Materials | Entered another Materials area 1136 | -9/Materials | Evolved 2 slots: Utility x2 1444 | -9/Materials | Discovered new exit (range 12) 1634 | -9/Materials | Repaired Imp. Heat Sink 1715 | -9/Materials | Central database locked down 1771 | -9/Materials | Entered Mines 1994 | -9/Mines | Deemed a non-threat by the Exiles lab entrance 1994 | -9/Mines | Discovered new exit (range 5) 2001 | -9/Mines | Entered Exiles 2043 | -9/Exiles | Met 8R-AWN 2070 | -9/Exiles | Met EX-HEX 2129 | -9/Exiles | Met EX-BIN 2148 | -9/Exiles | Aligned with FarCom system 2150 | -9/Exiles | Given EX-Vault access code 2190 | -9/Exiles | Opened EX-Vault 2192 | -9/Exiles | Build established: Scavenger-Mutant 2203 | -9/Exiles | Found Potential Leg 2205 | -9/Exiles | Found Potential Leg 2209 | -9/Exiles | Found Cloak of Protection 2216 | -9/Exiles | Found Latent Energy Streamer 2249 | -9/Exiles | Warned to stay clear of 0b10 Research branches 2280 | -9/Exiles | Met EX-DEC 2314 | -9/Exiles | Discovered new exit (range 11) 2324 | -9/Exiles | Stole three prototypes: Potential Leg, Cloak of Protection, Latent Energy Streamer 2324 | -9/Exiles | Entered Mines 2653 | -8/Mines | Build established: Skirmisher 2842 | -8/Mines | Discovered new exit (range 15) 2852 | -8/Mines | Discovered new exit (range 10) 2855 | -8/Mines | Entered Materials 2855 | -8/Materials | Evolved 2 slots: Utility x2 3039 | -8/Materials | Discovered new exit (range 11) 3059 | -8/Materials | Identified exit to Factory 3095 | -8/Materials | Entered Factory 3095 | -7/Factory | Evolved 2 slots: Power x1, Utility x1 3097 | -7/Factory | FarCom data flow suspended 3162 | -7/Factory | Discovered new exit (range 5) 3166 | -7/Factory | Identified exit to Lower Caves 3349 | -7/Factory | Repaired Lgt. Nuclear Core 3389 | -7/Factory | Build established: Mutant 4208 | -7/Factory | Discovered new exit (range 14) 4225 | -7/Factory | Identified exit to Factory 4244 | -7/Factory | Entered another Factory area 4244 | -6/Factory | Evolved 2 slots: Propulsion x1, Utility x1 4474 | -6/Factory | Discovered new exit (range 13) 4495 | -6/Factory | Identified exit to Factory 4584 | -6/Factory | Entered another Factory area 4584 | -5/Factory | Evolved 2 slots: Utility x2 4769 | -5/Factory | Discovered new exit (range 15) 4825 | -5/Factory | Identified exit to Factory 4826 | -5/Factory | Entered another Factory area 4826 | -4/Factory | Evolved 2 slots: Propulsion x1, Utility x1 4961 | -4/Factory | Build established: Gladiator 5468 | -4/Factory | Garrison activated, responded to threat 5540 | -4/Factory | Discovered new exit (range 13) 5547 | -4/Factory | Identified exit to Armory 5547 | -4/Factory | Entered Armory 5843 | -4/Armory | Build established: Mutant 6215 | -4/Armory | System corruption reached 10% 6297 | -4/Armory | First assault squad dispatched 6610 | -4/Armory | Lost 4 parts (1p1n2u) 6662 | -4/Armory | Found Gamma Bomb Array 6665 | -4/Armory | Found Gamma Bomb Array 6767 | -4/Armory | Discovered new exit (range 13) 6770 | -4/Armory | System corruption reached 30% 6819 | -4/Armory | Destroyed 7 combat bots 6823 | -4/Armory | Lost 5 parts (1p2n2u) 6823 | -4/Armory | Identified exit to Research 6825 | -4/Armory | Entered Research 6825 | -3/Research | Evolved 2 slots: Utility x2 7500 | -3/Research | Lost 4 parts (1p1n1u1w) 7514 | -3/Research | System corruption reached 10% 7642 | -3/Research | Found Prototype Protection 7642 | -3/Research | Identified Centrium Heavy Armor Plating 7715 | -3/Research | Build established: Scavenger-Mutant 8004 | -3/Research | Discovered new exit (range 15) 8026 | -3/Research | Spotted B-86 Titan 8042 | -3/Research | Identified exit to Testing 8060 | -3/Research | Entered Testing 8087 | -3/Testing | Found Prototype Energy Cannon 8087 | -3/Testing | Identified Potential Cannon 8190 | -3/Testing | Fabricated Adv. Force Field (x2) 8557 | -3/Testing | Found Prototype Device 8557 | -3/Testing | Identified Exp. EM Disruption Field 8677 | -3/Testing | Rewired PX-1NCTX6J43Q 8882 | -3/Testing | Scanned by Researcher 8962 | -3/Testing | System corruption reached 30% 8987 | -3/Testing | Destroyed PX-1NCTX6J43Q 9163 | -3/Testing | Build established: Mutant 9310 | -3/Testing | First assault squad dispatched 9506 | -3/Testing | Found Centrium Heavy Armor Plating 9568 | -3/Testing | Spotted Striker 9569 | -3/Testing | Spotted Striker 9629 | -3/Testing | Lost 4 parts (2p2u) 9641 | -3/Testing | Spotted Alpha 7 9643 | -3/Testing | Destroyed Striker 9646 | -3/Testing | Destroyed Striker 9724 | -3/Testing | Core integrity fell below 50% 9776 | -3/Testing | Destroyed Alpha 7 9777 | -3/Testing | Core integrity fell below 20% 9794 | -3/Testing | Destroyed by G-73 Enforcer with Phase Gun Last Messages --------------- 09772_ U-05 Engineer builds a Wall. 09772_ System corrupted: Com. HERF Cannon failed to cycle. 09775_ Slug penetrates Earth. 09775_ Adv. Target Analyzer destroyed. 09776_ Prototype Device fried. 09776_ Alpha 7 destroyed. 09777_ U-05 Engineer lays Concrete. 09779_ U-05 Engineer builds a Wall. 09784_ U-05 Engineer lays Concrete. 09785_ System corrupted: Imp. Matter Neutralizer failed to cycle. 09786_ U-05 Engineer builds a Wall. 09787_ System corrupted: Heat flow error (+264). 09790_ U-05 Engineer lays Concrete. 09791_ System corrupted: Imp. Matter Neutralizer failed to cycle. 09791_ U-05 Engineer lays Concrete. 09792_ Com. HERF Cannon destroyed. 09792_ U-05 Engineer builds a Wall. Map ----- +----------------------------------------------------+ | ??????????######"" ""########????????? | | ???????????????# " #????????? | | ???????????????## ## """" #????????? | | ??????????????###### ""S"" #????????? | | ??????????????# + "" "" #????????? | | ??????????????# #### +????????? | | ?????????######+#### """ #????????? | | ?????????# ## """ #????????? | | ?????????# ## """ !#????????? | | ?????????# ## #????????? | | ?????????# ###########????????? | | ?????????# """ #??????????????????? | | ????## # """"#??????????????????? | | ???# # """"#??????????????????? | | ?# # """#??????????????????? | | ## ! #??????????????????? | | #;;; ##+##########?????????????? | | ## ; % ????????? | | #;% ; % ????????? | | # ! !%# ######+#???????????? | | ; % # #?????????????????? | | ; g# [# #?????????????????? | | ; gu# #?????????????????? | | | g%## #?????????????????? | | " = i %% # #?????????????????? | | #"""#" # @ # #?????????????????? | | ?#! ## # # #?????????????????? | | ?# =!?# ## ## # #?????????????????? | | ?#! =!?# #?????????????????? | | ?# ?## # #?????????????????? | | ?# ??## # #??????????????????? | | ?###+#???# ##??????????????????? | | ?????????# = #???????????????????? | | ?????????# [%! ???????????????????? | | ????????? ! ???????????????????? | | ?????????### ####??????????????????? | | ??????????" #???????????????????? | | ????????""" #???????????????????? | | ???????#"" ##???????????????????? | | ???????#"& "#????????????????????? | | ???????#""" "#????????????????????? | | ???????#""""""""#????????????????????? | | ???????##########????????????????????? | | ?????????????????????????????????????? | | ?????????????????????????????????????? | | ?????????????????????????????????????? | | ?????????????????????????????????????? | | ?????????????????????????????????????? | | ?????????????????????????????????????? | | ?????????????????????????????????????? | +----------------------------------------------------+ Best States ------------- Heat Dissipation 103 Energy Generation 59 Energy Capacity 1165 Matter Stores 300 Matter Capacity 300 Sight Range 16 Robot Scan Range 16 Terrain Scan Range 16 Terrain Scan Density 10 Jamming Range 16 Cloak Strength 5 Power Amplification 30 Corruption Block 8 Armor Coverage 1200 Resistance: KI 30 Weapon Cycling 15 Phase Shifting 5 Evasion (%) 85 Melee Accuracy 6 Target Analysis 11 Recoil Reduction 2 Item Schematics ----------------- Hvy. Disruptor Cannon | -6/Factory | Hacked Hvy. Proton Cannon | -3/Testing | Archive Spectral Analyzer | -3/Testing | Archive Particle Accelerator | -3/Testing | Archive Imp. Energy Well | -3/Testing | Archive Imp. Matter Neutralizer | -3/Testing | Archive Adv. Variable Charge Gun | -3/Testing | Archive Robot Schematics ------------------ T-07 Excavator | -3/Testing | Archive Fabricated ------------ Adv. Force Field | x2 | -3/Testing | Preloaded Repaired ---------- Imp. Heat Sink | 37% | -9/Materials Lgt. Nuclear Core | 14% | -7/Factory Studied --------- Aluminum Leg | -9/Materials | Hacked VSS Leg | -8/Materials | Hacked Mic. Nuclear Core | -7/Factory | Hacked Alien Tech Used ----------------- None Achievements -------------- Max Potential Challenges ------------ None Game ------ Seed ThermicTechArchive Manual? 0 Play Time 01:57:01 Cumulative 145.2 hours Start 2026.09.20 @ 00:43:22 End 2026.09.20 @ 04:07:26 Sessions 3 Manual Loads 0 Difficulty Rogue Special Mode None Game No. 160 Rogue 160 Adventurer 0 Explorer 0 Win Type - Total 0 Types 0/0/0/0/0/0/0/0/0/0 Lore% 55 Gallery% 58 Achievement% 45 Wizard Run 0 Options --------- Layout 1 ASCII 0 Keyboard 0 Movement Mouse Keybinds 0 Fullscreen 2 Font 24/Smallcaps Map View 50x35 Zoom Use 0% Tactical HUD 1 Map Filters NONE Filters NONE Steam 1 RUN: 755c0b88-0732-4d43-b60c-b07ca6f95073